Cogmind - Beta 16 @@@ ROGUE MODE // 2026.02.06 @ 04:06:21 Player: Megaknight51 Result: Destroyed self with Mini Grenade Launcher Performance ------------- Evolutions (0) 0 Regions Visited (3) 600 Robots Destroyed (31) 155 Value Destroyed (546) 546 Prototype IDs (4) 80 Alien Tech Used (0) 0 Bonus (-25) -25 TOTAL SCORE: 1356 Bonus ------- Friendly Fire -25 Cogmind --------- Core Integrity 0/250 Matter 0/300 Energy 180/180 System Corruption 0% Temperature Cool (0) Movement Core (150) Ox2 Location -10/Subcaves Parts ------- > --- POWER (1) -------- Meta Core > --- PROPULSION (2+1) - (None) > --- UTILITY (2+1) ---- Visual Processing Unit > --- WEAPON (2+1) ----- Mini Grenade Launcher > --- INVENTORY (5) ---- Light Nuclear Core Autogun Autogun Mini Grenade Launcher Heavy Hammer Peak State ------------ > --- POWER ------------ Meta Core > --- PROPULSION ------- (None) > --- UTILITY ---------- Visual Processing Unit > --- WEAPON ----------- Autogun Mini Grenade Launcher > --- INVENTORY -------- Light Nuclear Core Autogun Autogun Mini Grenade Launcher Heavy Hammer [Rating: 20] Favorites ----------- Power Ion Engine Engine Ion Engine Power Core Meta Core Propulsion Light Treads Treads Light Treads Utility Visual Processing Unit Device Sensor Array Processor Visual Processing Unit Weapon Autogun Energy Gun Medium Laser Ballistic Gun Autogun Launcher Mini Grenade Launcher Build | -11 -10 -10 -10 ------- Run | Yrd Mat Min Sub Slots Evolved . | . . . . Power . | . . . . Propulsion . | . . . . Utility . | . . . . Weapon . | . . . . Parts Attached 16 | 5 9 1 1 Power 3 | 1 1 . 1 Engine 2 | 1 1 . . Core 1 | . . . 1 Reactor . | . . . . Propulsion 2 | 2 . . . Treads 2 | 2 . . . Leg . | . . . . Wheel . | . . . . Hover . | . . . . Flight . | . . . . Utility 4 | . 3 1 . Device 3 | . 2 1 . Storage . | . . . . Processor 1 | . 1 . . Hackware . | . . . . Protection . | . . . . Artifact . | . . . . Weapon 7 | 2 5 . . Energy Gun 1 | 1 . . . Energy Cannon . | . . . . Ballistic Gun 5 | 1 4 . . Ballistic Cannon . | . . . . Launcher 1 | . 1 . . Special Weapon . | . . . . Impact Weapon . | . . . . Slashing Weapon . | . . . . Piercing Weapon . | . . . . Special Melee Weapon . | . . . . Unidentified Prototypes 2 | . . 1 1 Parts Lost 5 | . . . 5 Power 1 | . . . 1 Propulsion 2 | . . . 2 Utility 1 | . . . 1 Weapon 1 | . . . 1 Highest Loss Streak 4 | . . . 4 To Critical Strikes . | . . . . Average Backups 3 | . 3 5 5 Power 1 | . 1 1 1 Propulsion . | . . . . Utility . | . . . . Weapon 2 | . 2 4 4 Tool/Special . | . . . . Unused Backups 7 | . 3 . 4 Power 3 | . 2 . 1 Propulsion . | . . . . Utility . | . . . . Weapon 4 | . 1 . 3 Tool/Special . | . . . . Average Slot Usage (%) 87 | . 85 100 84 Engine 13 | . 13 14 12 Treads 27 | . 27 28 25 Device 7 | . 6 14 2 Processor 9 | . 8 14 13 Ballistic Gun 18 | . 19 14 13 Launcher 8 | . 7 14 13 Peak Build Rating 20 | 5 11 19 20 Average Rating 9 | 4 8 14 11 On Entrance 8 | . 5 11 19 Avg Prop Armor Cover (%) . | . . . . Naked Turns 2 | . 2 . . Heaviest Build 11 | 8 11 10 10 Greatest Support 40 | 40 40 40 40 Greatest Overweight (x) 2 | . 2 . 2 Average Overweight (x) . | . . . . Largest Inventory Capacity 5 | 5 5 5 5 Average Capacity 5 | 5 5 5 5 Most Carried 5 | . 5 5 5 Average Carried 3 | . 3 5 5 Final Capacity 5 | 5 5 5 5 Final Carried 5 | . 5 5 5 Class Distribution -------------------- 100% | Mutant Dominant Class ---------------- Mutant | -10/Materials Mutant | -10/Mines Mutant | -10/Subcaves Resources | -11 -10 -10 -10 ----------- Run | Yrd Mat Min Sub Matter Collected 481 | 243 162 44 32 Remotely . | . . . . Salvage Created 611 | . 426 62 123 Parts 64 | . 47 4 13 Haulers Intercepted . | . . . . Recyclers Shooed 1 | . 1 . . Parts Field Recycled . | . . . . Retrieved Matter . | . . . . Parts Self-Destructed 9 | . . . 9 Prevented . | . . . . Parts Restored . | . . . . Kills | -11 -10 -10 -10 ------- Run | Yrd Mat Min Sub Combat Hostiles Destroyed 22 | . 13 1 8 Guns 10 | . 9 . 1 AOE 12 | . 4 1 7 Classes Destroyed 9 | . 7 1 1 Worker 2 | . 1 1 . Builder 3 | . 3 . . Recycler 2 | . 1 1 . Operator 1 | . 1 . . Watcher 2 | . 2 . . Swarmer 13 | . 9 . 4 Grunt 4 | . 4 . . Subdweller 4 | . . . 4 Assembled 1 | . . 1 . Best Kill Streak 6 | . 6 3 4 Combat Bots Only 4 | . 3 1 4 Max Kills in Single Turn 3 | . 3 2 3 Gunslinging . | . . . . Exploded 2 | . 2 1 2 Melee . | . . . . Uniques/NPCs Destroyed . | . . . . Combat | -11 -10 -10 -10 -------- Run | Yrd Mat Min Sub Hostile Shots Fired 64 | . 29 . 35 Missed 20 | . 8 . 12 Hits 44 | . 21 . 23 Projectile 44 | . 21 . 23 AOE 1 | . . . 1 Critical Strikes 1 | . 1 . . Damage Taken 842 | . 264 . 578 Core 260 | . 57 . 203 Absorbed by Shields . | . . . . Core Remaining (%) 100 | 100 . . . Volleys Fired 45 | . 32 1 12 Largest 2 | . 2 2 2 Hottest 70 | . 70 53 53 Shots Fired 85 | . 62 2 21 Gun 65 | . 54 1 10 Cannon . | . . . . Launcher 20 | . 8 1 11 Special . | . . . . Kinetic 62 | . 51 1 10 Thermal 3 | . 3 . . Explosive 20 | . 8 1 11 Electromagnetic . | . . . . Robot Hit Streak 7 | . 7 . 3 Robot Miss Streak 2 | . 2 . 1 Penetration Max . | . . . . Secondary Targets 1 | . 1 . . Max Gunslinging Chain 1 | . 1 . . Shots Hit Robots 36 | . 29 . 7 Core Hits 41 | . 29 2 10 Critical Kills . | . . . . Critical Parts Destroyed . | . . . . Critical Strikes 1 | . 1 . . Burn 1 | . 1 . . Melee Attacks . | . . . . Impact . | . . . . Slashing . | . . . . Piercing . | . . . . Sneak Attacks . | . . . . Combat Hostiles . | . . . . Follow-up Attacks . | . . . . Damage Inflicted 1744 | . 793 115 836 Guns 426 | . 339 . 87 Cannons . | . . . . Explosions 1299 | . 449 102 748 Melee . | . . . . Ramming 19 | . 5 13 1 Kinetic 389 | . 302 . 87 Thermal 37 | . 37 . . Explosive 1299 | . 449 102 748 Electromagnetic . | . . . . Impact . | . . . . Slashing . | . . . . Piercing . | . . . . Highest Corruption . | . . . . Average Corruption . | . . . . Corruption Purged . | . . . . Corruption Blocked . | . . . . Overload Shots . | . . . . Overflow Damage 23 | . . . 23 Projectiles . | . . . . Explosions 23 | . . . 23 Melee . | . . . . Knockbacks . | . . . . Impact . | . . . . Kinetic . | . . . . Secondary . | . . . . Self-Inflicted Damage 101 | . 20 . 81 Shots 3 | . 1 . 2 Rammed 5 | . 1 1 3 Targets Rammed 6 | . 1 2 3 Kicked . | . . . . Crushed 1 | . . 1 . Highest Temperature 70 | . 70 12 . Average Temperature 15 | . 15 9 . Received Heat Transfer 144 | . 60 . 84 Siege Activations . | . . . . Martial Activations . | . . . . Shielding Activations . | . . . . Robots Disrupted . | . . . . Combat Hostiles . | . . . . Robots Corrupted . | . . . . Combat Hostiles . | . . . . Parts Fried . | . . . . Impact Corruptions . | . . . . Robots Melted . | . . . . Combat Hostiles . | . . . . Parts Melted . | . . . . Heat Transferred 185 | . 185 . . Parts Sabotaged . | . . . . Parts Stolen . | . . . . Parts Stripped . | . . . . Power Chain Reactions . | . . . . Alert | -11 -10 -10 -10 ------- Run | Yrd Mat Min Sub Maximum Alert Level . | . . . . Low Security (%) 100 | 100 100 100 . Level 1 . | . . . . Level 2 . | . . . . Level 3 . | . . . . Level 4 . | . . . . Level 5 . | . . . . High Security . | . . . . Max Security . | . . . . Peak Influence 198 | . 198 37 . Initial 37 | . . 37 . Average 55 | . 67 5 . Influence Increases 664 | . 488 21 155 Destroy 0b10 Robot/C 340 | . 260 . 80 Destroy 0b10 Robot/NC 50 | . 40 10 . Destroy Leader 54 | . 54 . . Successful Hack 6 | . 6 . . Disable Machine 45 | . 45 . . Destroy Structure 64 | . 53 11 . Lose Combat Pursuer 105 | . 30 . 75 Influence Decreases 589 | . 390 119 80 Entered New Map 61 | . . 61 . Time Decay 482 | . 390 52 40 Lost Part 40 | . . . 40 Lost Ally 6 | . . 6 . Squads Dispatched 1 | . 1 . . Investigation . | . . . . Extermination . | . . . . Reinforcement 1 | . 1 . . Assault . | . . . . Garrison . | . . . . Intercept . | . . . . Searches Triggered . | . . . . Construction Impeded . | . . . . Haulers Reinforced . | . . . . Active Scanning Responses . | . . . . Cargo Convoy Interrupts . | . . . . Stealth | -11 -10 -10 -10 --------- Run | Yrd Mat Min Sub Distress Signals 3 | . 3 . . Communications Jammed . | . . . . Distress Signals . | . . . . Times Spotted 37 | . 26 2 9 Peak Tracking Total 5 | . 5 3 4 Tactical Retreats 3 | . 2 . 1 Traps | -11 -10 -10 -10 ------- Run | Yrd Mat Min Sub Traps Triggered 4 | . 4 . . Indirectly . | . . . . Trap Hack Attempts . | . . . . Triggered . | . . . . Disarmed . | . . . . Reprogrammed . | . . . . Reused . | . . . . Traps Extracted . | . . . . Installed . | . . . . Triggered . | . . . . Machines | -11 -10 -10 -10 ---------- Run | Yrd Mat Min Sub Machines Disabled 6 | . 3 . 3 Max in Single Turn 3 | . 2 . 3 Machines Repaired . | . . . . Machines Dismantled . | . . . . Machines Sabotaged . | . . . . Overloaded Fab Kills . | . . . . Hacking | -11 -10 -10 -10 --------- Run | Yrd Mat Min Sub Machines Accessed 5 | . 5 . . Terminals 5 | . 5 . . Fabricators . | . . . . Repair Stations . | . . . . Recycling Units . | . . . . Scanalyzers . | . . . . Garrison Access . | . . . . Total Hacks 15 | . 15 . . Successful 6 | . 6 . . Failed 9 | . 9 . . Catastrophic 2 | . 2 . . Database Lockouts . | . . . . Manual 12 | . 12 . . Terminals 15 | . 15 . . Fabricators . | . . . . Repair Stations . | . . . . Recycling Units . | . . . . Scanalyzers . | . . . . Garrison Access . | . . . . Terminal Hacks 6 | . 6 . . Robot Analysis 3 | . 3 . . Prototype ID Bank 1 | . 1 . . Terminal Index 1 | . 1 . . Registered Components 1 | . 1 . . Fabricator Hacks . | . . . . Repair Station Hacks . | . . . . Recycling Unit Hacks . | . . . . Scanalyzer . | . . . . Garrison Access Hacks . | . . . . Unauthorized Hacks . | . . . . Terminals . | . . . . Fabricators . | . . . . Repair Stations . | . . . . Recycling Units . | . . . . Scanalyzers . | . . . . Garrison Access . | . . . . Data Cores Recovered . | . . . . Used . | . . . . Hacking Detections 4 | . 4 . . Full Trace Events 1 | . 1 . . Feedback Events . | . . . . Feedback Blocked . | . . . . Robot Schematics Acquired . | . . . . Robots Built . | . . . . Authchips . | . . . . Time . | . . . . Total Robot Build Rating . | . . . . Part Schematics Acquired . | . . . . Parts Built . | . . . . Authchips . | . . . . Time . | . . . . Total Part Build Rating . | . . . . Part Studies Acquired . | . . . . Parts Repaired . | . . . . Time . | . . . . Parts Recycled . | . . . . Recycled Matter . | . . . . Retrieved Matter . | . . . . Retrieved Components . | . . . . Parts Scanalyzed . | . . . . Part Schematics Acquired . | . . . . Parts Damaged . | . . . . Bothacking | -11 -10 -10 -10 ------------ Run | Yrd Mat Min Sub Used RIF Installer . | . . . . Robots Hacked . | . . . . Non-combat . | . . . . Combat . | . . . . Robot Hacks Applied . | . . . . Relay Couplers Released . | . . . . Fabnet Peak Effective % . | . . . . Robots Rewired . | . . . . Allies Hacked . | . . . . Hacks Repelled . | . . . . Allies | -11 -10 -10 -10 -------- Run | Yrd Mat Min Sub Total Allies 2 | . . 2 . Largest Group 2 | . . 2 . Highest-Rated Group 49 | . . 49 . Highest-Rated Ally 31 | . . 31 . Total Orders . | . . . . Ally Attacks 3 | . . 3 . Total Damage 21 | . . 21 . Kills . | . . . . Allies Corrupted . | . . . . Allies Melted . | . . . . Intel | -11 -10 -10 -10 ------- Run | Yrd Mat Min Sub Active Infowar (turns) 1599 | . 1021 315 263 Optics 1599 | . 1021 315 263 Sensors 1212 | . 855 315 42 Robot Analysis Total 3 | . 3 . . Derelict Logs Recovered . | . . . . Drone Launches . | . . . . Drone Recoveries . | . . . . Exploration | -11 -10 -10 -10 ------------- Run | Yrd Mat Min Sub Turns Passed 2405 | 77 1750 315 263 Spaces Moved 1373 | 46 1013 170 144 Core 12 | 3 3 . 6 Treads 1361 | 43 1010 170 138 Legs . | . . . . Wheels . | . . . . Hover . | . . . . Flight . | . . . . Fastest Speed 50 | 50 50 160 100 Average Speed 159 | 152 159 160 157 Slowest Speed 160 | 160 160 160 160 Overloaded Moves . | . . . . Propulsion Burnouts . | . . . . Robots Hopped . | . . . . Potential Cave-ins . | . . . . Cave-ins Triggered . | . . . . Exploration Rate (%) 41 | 4 97 52 14 Regions Visited 3 Branch Regions 2 Pre-discovered Areas . | . . . . Known Exits Taken . | . . . . Unknown Exits Taken 3 | 1 1 1 . Scrap Searched . | . . . . Spaces Dug . | . . . . Terrain Destroyed 144 | . 57 12 75 Melee . | . . . . Projectile . | . . . . AOE 144 | . 57 12 75 Terrain Rammed . | . . . . Walls Destroyed . | . . . . Machines Disabled . | . . . . Actions | -11 -10 -10 -10 --------- Run | Yrd Mat Min Sub Total 1509 | 50 1089 210 160 Wait 46 | . 9 37 . Move 1370 | 45 1012 169 144 Hop . | . . . . Pick Up 8 | . 8 . . Fast Attach 16 | 5 10 . 1 Attach . | . . . . Detach . | . . . . Swap 9 | . 8 1 . Drop 9 | . 9 . . Fire 45 | . 32 1 12 Melee . | . . . . Ram 3 | . . . 3 Kick . | . . . . Crush 3 | . 1 2 . Escape Stasis . | . . . . Rewire . | . . . . Trap . | . . . . Miscellaneous . | . . . . Route ------- -11/Scrapyard -10/Materials (discovered 4 exits: [*Mat x3] / [*Min]) -10/Mines -10/Subcaves History --------- Turn | Location | Event 30 | -11/Scrapyard | Discovered new exit (range 16) 78 | -11/Scrapyard | Entered Materials 301 | -10/Materials | Build established: Mutant 534 | -10/Materials | Discovered new exit (range 5) 889 | -10/Materials | Discovered new exit (range 10) 1217 | -10/Materials | Discovered new exit (range 12) 1284 | -10/Materials | Discovered new exit (range 11) 1828 | -10/Materials | Entered Mines 1925 | -10/Mines | Assembled infested the area 1988 | -10/Mines | Found a damaged Exp. Sensor Array with a note attached 1991 | -10/Mines | Found Prototype Device 1991 | -10/Mines | Identified Exp. Sensor Array 2124 | -10/Mines | Discovered new exit (range 6) 2143 | -10/Mines | Entered Subcaves 2177 | -10/Subcaves | Ambushed by Subdwellers from Twisted Machinery 2383 | -10/Subcaves | A Subdweller sparked back to life 2383 | -10/Subcaves | A Subdweller sparked back to life 2383 | -10/Subcaves | Ambushed by Subdweller buried in earth 2392 | -10/Subcaves | Core integrity fell below 50% 2393 | -10/Subcaves | Found Prototype Power Core 2393 | -10/Subcaves | Identified Meta Core 2395 | -10/Subcaves | Attached Meta Core, gained temporary slots: Propulsion, Utility, Weapon 2400 | -10/Subcaves | Core integrity fell below 20% 2406 | -10/Subcaves | Destroyed self with Mini Grenade Launcher Last Messages --------------- 02383_ Ion Engine destroyed. 02384_ FW-4S1(R): "ARGHSUB!" 02385_ Lgt. Treads destroyed. 02386_ JO-SWC(R) destroyed. 02387_ Lgt. Treads destroyed. 02390_ The unstable cave ceiling collapses. 02391_ Acquired 19 matter. 02392_ Subatomizers dissect the Prototype Power Core. 02393_ Acquired Prototype Power Core. 02393_ Identified Meta Core. 02395_ Core temporarily expanded with Propulsion slot. 02395_ Core temporarily expanded with Utility slot. 02395_ Core temporarily expanded with Weapon slot. 02395_ Autogun destroyed. 02395_ Destroyed Autogun. 02399_ Slammed into FW-4S1(R). 02399_ Destabilizing: Core damaged (-10). 02400_ The unstable cave ceiling collapses. 02403_ Slammed into FW-4S1(R). 02406_ FW-4S1(R) destroyed. Map ----- +----------------------------------------------------+ | ???????????????????????????????????????## | | ????????????????????????????????????????## | | ?????????????????????????????????????????## ## | | ????????????????????????????????????????### ?## | | ???????????????????????????????????????## ??### | | ??????????????????????????????????????## ???### | | ??????????????????????????????????????# ???# | | ??????????????????????????????????????# #???# | | ??????????????????????????????????????# #???# | | ??????????????????????????????????????# ##### | | ?????????????????????????????????????## ## | | ?????????????????????????????????????# ### | | ?????????????????????????????????????# #### | | ??????????????????????????????????????# ##### | | ???????????????????????????####????????# ### | | ???????????????????????????# #??###### | | ???????????????????????????# ### | | ???????????????????????????# ## | | ???????????????????????##??# ### #### | | ???????????????????????# ??# ### ######??## | | ???????????????????????# #?#????# ######??## | | ???????????????????????#;######## ##??# | | ???????????????????????#; ;;;;; # #??# | | ??????????????????????##= #### #??## | | ???????????????????#### % ; ##??##% ### | | ??????????????????## &@ ####????? #? | | ??????????????????# #????????= ###? | | ??????????????????# #???????? ?? | | ??????????????????## ##????????? =[ ##? | | ??????????????????# ##?????????? #? | | ??????????????????### ###?????????? ##? | | ????????????????????# & #??????????? """"##?? | | ????????????????????# #????????????#####??? | | ????????????????????### < #???????????????????? | | ?????????????????????### #??????????????? | | ???????????????????????####R #?????????????? | | ??????????????????????????### #?????????????? | | ????????????????????????????? ???????????? | | ????????????????????????????? ?????????? | | ?????????????????????????????## ?????????? | | ???????????????????????????????###### ?????????? | | ?????????????????????????????????????? ??????????? | | ?????????????????????????????????????????????????? | | ?????????????????????????????????????????????????? | | ?????????????????????????????????????????????????? | | ?????????????????????????????????????????????????? | | ?????????????????????????????????????????????????? | | ?????????????????????????????????????????????????? | | ?????????????????????????????????????????????????? | | ?????????????????????????????????????????????????? | +----------------------------------------------------+ Best States ------------- Heat Dissipation 25 Energy Generation 17 Energy Capacity 250 Matter Stores 300 Matter Capacity 300 Sight Range 18 Robot Scan Range 20 Terrain Scan Density 10 Evasion (%) 50 Recoil Reduction 2 Item Schematics ----------------- None Robot Schematics ------------------ None Fabricated ------------ Nothing Repaired ---------- Nothing Studied --------- None Alien Tech Used ----------------- None Achievements -------------- None Challenges ------------ None Game ------ Seed CooledCooledPurifier Manual? 0 Play Time 00:12:00 Cumulative 56.0 hours Start 2026.02.06 @ 03:56:04 End 2026.02.06 @ 04:06:21 Sessions 1 Manual Loads 0 Difficulty Rogue Special Mode None Game No. 109 Rogue 109 Adventurer 0 Explorer 0 Win Type - Total 0 Types 0/0/0/0/0/0/0/0/0/0 Lore% 35 Gallery% 31 Achievement% 27 Wizard Run 0 Options --------- Layout 0 ASCII 0 Keyboard 1 Movement Arrows Keybinds 0 Fullscreen 1 Font 18/Smallcaps Map View 38x25 Zoom Use 72% Tactical HUD 1 Map Filters NONE Filters NONE Steam 1 RUN: 59661a46-f677-42e7-9415-613dbe5cb644